Cogmind - Beta 10.2 @@@ ROGUE MODE // 2021.05.11 @ 20:26:01 Player: ChromeKnight Result: Destroyed by H-55 Commando with Gauss Rifle Performance ------------- Evolutions (0) 0 Regions Visited (3) 600 Robots Destroyed (1) 5 Value Destroyed (34) 34 Prototype IDs (23) 460 Alien Tech Used (0) 0 Bonus (300) 300 TOTAL SCORE: 1399 Bonus ------- Aligned with FarCom 300 Cogmind --------- Core Integrity 0/250 Matter 249/300 Energy 99/100 System Corruption 0% Temperature Cool (0) Movement Core (150) Ox2 Location -10/Exiles Parts ------- > --- POWER (1) -------- (None) > --- PROPULSION (2) --- (None) > --- UTILITY (2) ------ Medium Storage Unit > --- WEAPON (2) ------- (None) > --- INVENTORY (8) ---- Targeting Computer Army-in-a-Box (30/30) Latent Energy Streamer Peak State ------------ > --- POWER ------------ Light Ion Engine > --- PROPULSION ------- Aluminum Leg Aluminum Leg > --- UTILITY ---------- Medium Storage Unit Targeting Computer > --- WEAPON ----------- Medium Laser Light Assault Rifle > --- INVENTORY -------- Targeting Computer Army-in-a-Box Latent Energy Streamer [Rating: 13] Favorites ----------- Power Light Ion Engine Engine Light Ion Engine Propulsion Aluminum Leg Leg Aluminum Leg Utility Targeting Computer Storage Medium Storage Unit Processor Targeting Computer Weapon Light Assault Rifle Energy Gun Small Laser Ballistic Gun Light Assault Rifle Build | -11 -10 -10 -10 ------- Run | Scr Mat Min Exi Slots Evolved . | . . . . Power . | . . . . Propulsion . | . . . . Utility . | . . . . Weapon . | . . . . Parts Attached 11 | 6 3 . 2 Power 1 | 1 . . . Engine 1 | 1 . . . Core . | . . . . Reactor . | . . . . Propulsion 3 | 2 1 . . Treads . | . . . . Leg 3 | 2 1 . . Wheel . | . . . . Hover . | . . . . Flight . | . . . . Utility 3 | 1 2 . . Device . | . . . . Storage 2 | 1 1 . . Processor 1 | . 1 . . Hackware . | . . . . Protection . | . . . . Artifact . | . . . . Weapon 4 | 2 . . 2 Energy Gun 3 | 1 . . 2 Energy Cannon . | . . . . Ballistic Gun 1 | 1 . . . Ballistic Cannon . | . . . . Launcher . | . . . . Special Weapon . | . . . . Impact Weapon . | . . . . Slashing Weapon . | . . . . Piercing Weapon . | . . . . Special Melee Weapon . | . . . . Unidentified Prototypes . | . . . . Parts Lost 6 | . . . 6 Power 1 | . . . 1 Propulsion 2 | . . . 2 Utility 1 | . . . 1 Weapon 2 | . . . 2 Highest Loss Streak 6 | . . . 6 Average Slot Usage (%) 92 | . 96 100 88 Engine 12 | . 14 14 12 Leg 26 | . 28 28 24 Storage 14 | . 14 14 14 Processor 12 | . 11 14 12 Energy Gun 12 | . 14 14 12 Ballistic Gun 12 | . 14 14 12 Naked Turns . | . . . . Heaviest Build 14 | 9 13 13 14 Greatest Support 20 | 20 20 20 20 Greatest Overweight (x) 2 | . . . 2 Average Overweight (x) . | . . . . Largest Inventory Capacity 8 | 6 8 8 8 Average Capacity 7 | 5 6 8 8 Most Carried 8 | 1 6 6 8 Average Carried 4 | . 3 6 6 Final Capacity 8 | 6 8 8 8 Final Carried 8 | 1 6 6 8 Class Distribution -------------------- 100% | Mutant Dominant Class ---------------- Mutant | -10/Materials Mutant | -10/Mines Mutant | -10/Exiles Resources | -11 -10 -10 -10 ----------- Run | Scr Mat Min Exi Matter Collected 240 | 210 30 . . Remotely . | . . . . Salvage Created 30 | . 30 . . Parts 3 | . 3 . . Haulers Intercepted . | . . . . Recyclers Shooed . | . . . . Parts Field Recycled . | . . . . Retrieved Matter . | . . . . Parts Self-Destructed . | . . . . Prevented . | . . . . Kills | -11 -10 -10 -10 ------- Run | Scr Mat Min Exi Combat Hostiles Destroyed 1 | . 1 . . Guns 1 | . 1 . . Classes Destroyed 1 | . 1 . . Grunt 1 | . 1 . . Best Kill Streak 1 | . 1 . . Combat Bots Only 1 | . 1 . . Max Kills in Single Turn 1 | . 1 . . Gunslinging . | . . . . Exploded . | . . . . Melee . | . . . . Uniques/NPCs Destroyed . | . . . . Combat | -11 -10 -10 -10 -------- Run | Scr Mat Min Exi Damage Taken 709 | . 80 . 629 Core 261 | . 12 . 249 Absorbed by Shields . | . . . . Core Remaining (%) 100 | 100 . . . Volleys Fired 11 | 1 10 . . Largest 2 | 2 2 . . Hottest 60 | 60 60 . . Shots Fired 22 | 2 20 . . Gun 22 | 2 20 . . Cannon . | . . . . Launcher . | . . . . Special . | . . . . Kinetic 11 | 1 10 . . Thermal 11 | 1 10 . . Explosive . | . . . . Electromagnetic . | . . . . Robot Hit Streak 7 | 2 7 . . Robot Miss Streak 2 | . 2 . . Penetration Max . | . . . . Secondary Targets . | . . . . Shots Hit Robots 14 | 2 12 . . Core Hits 3 | . 3 . . Critical Hits . | . . . . Critical Kills . | . . . . Critical Parts Destroyed . | . . . . Melee Attacks . | . . . . Impact . | . . . . Slashing . | . . . . Piercing . | . . . . Sneak Attacks . | . . . . Combat Hostiles . | . . . . Follow-up Attacks . | . . . . Damage Inflicted 134 | 20 114 . . Guns 134 | 20 114 . . Cannons . | . . . . Explosions . | . . . . Melee . | . . . . Ramming . | . . . . Kinetic 57 | 9 48 . . Thermal 77 | 11 66 . . Explosive . | . . . . Electromagnetic . | . . . . Impact . | . . . . Slashing . | . . . . Piercing . | . . . . Highest Corruption . | . . . . Average Corruption . | . . . . Corruption Purged . | . . . . Overload Shots . | . . . . Overflow Damage . | . . . . Projectiles . | . . . . Explosions . | . . . . Melee . | . . . . Knockbacks . | . . . . Impact . | . . . . Kinetic . | . . . . Secondary . | . . . . Self-Inflicted Damage . | . . . . Shots . | . . . . Rammed . | . . . . Targets Rammed . | . . . . Kicked . | . . . . Crushed . | . . . . Highest Temperature 64 | 20 64 . . Average Temperature 21 | 15 21 . . Received Heat Transfer 90 | . 42 . 48 Siege Activations . | . . . . Robots Corrupted . | . . . . Combat Hostiles . | . . . . Parts Fried . | . . . . Impact Corruptions . | . . . . Robots Melted . | . . . . Combat Hostiles . | . . . . Parts Melted . | . . . . Heat Transferred 175 | 25 150 . . Parts Sabotaged . | . . . . Parts Stolen . | . . . . Parts Stripped . | . . . . Power Chain Reactions . | . . . . Missiles Intercepted . | . . . . Alert | -11 -10 -10 -10 ------- Run | Scr Mat Min Exi Peak Influence 60 | . 60 23 . Initial 23 | . . 23 . Average 24 | . 32 23 . Maximum Alert Level . | . . . . Low Security (%) 100 | 100 100 100 . Level 1 . | . . . . Level 2 . | . . . . Level 3 . | . . . . Level 4 . | . . . . Level 5 . | . . . . High Security . | . . . . Max Security . | . . . . Squads Dispatched 1 | . 1 . . Investigation . | . . . . Extermination . | . . . . Reinforcement 1 | . 1 . . Assault . | . . . . Garrison . | . . . . Intercept . | . . . . Construction Impeded . | . . . . Haulers Reinforced . | . . . . Stealth | -11 -10 -10 -10 --------- Run | Scr Mat Min Exi Distress Signals . | . . . . Communications Jammed . | . . . . Distress Signals . | . . . . Times Spotted 9 | . 5 . 4 Peak Tracking Total 4 | . 2 . 4 Tactical Retreats . | . . . . Traps | -11 -10 -10 -10 ------- Run | Scr Mat Min Exi Traps Triggered . | . . . . Indirectly . | . . . . Trap Hack Attempts . | . . . . Triggered . | . . . . Disarmed . | . . . . Reprogrammed . | . . . . Reused . | . . . . Traps Extracted . | . . . . Installed . | . . . . Triggered . | . . . . Exploded 1 | . . . 1 Machines | -11 -10 -10 -10 ---------- Run | Scr Mat Min Exi Machines Disabled . | . . . . Max in Single Turn . | . . . . Machines Sabotaged . | . . . . Garrisons Compromised . | . . . . Overloaded Fab Kills . | . . . . Fab Network Shutdowns . | . . . . Hacking | -11 -10 -10 -10 --------- Run | Scr Mat Min Exi Machines Accessed 1 | . . . 1 Terminals . | . . . . Fabricators . | . . . . Repair Stations . | . . . . Recycling Units . | . . . . Scanalyzers . | . . . . Garrison Access . | . . . . Total Hacks 1 | . . . 1 Successful 1 | . . . 1 Failed . | . . . . Catastrophic . | . . . . Database Lockouts . | . . . . Manual 1 | . . . 1 Terminals . | . . . . Fabricators . | . . . . Repair Stations . | . . . . Recycling Units . | . . . . Scanalyzers . | . . . . Garrison Access . | . . . . Terminal Hacks 1 | . . . 1 EX-Prototype ID Bank 1 | . . . 1 Fabricator Hacks . | . . . . Repair Station Hacks . | . . . . Recycling Unit Hacks . | . . . . Scanalyzer . | . . . . Garrison Access Hacks . | . . . . Unauthorized Hacks . | . . . . Terminals . | . . . . Fabricators . | . . . . Repair Stations . | . . . . Recycling Units . | . . . . Scanalyzers . | . . . . Garrison Access . | . . . . Data Cores Recovered . | . . . . Used . | . . . . Hacking Detections . | . . . . Full Trace Events . | . . . . Feedback Events . | . . . . Feedback Blocked . | . . . . Robot Schematics Acquired . | . . . . Robots Built . | . . . . Matter . | . . . . Time . | . . . . Total Robot Build Rating . | . . . . Part Schematics Acquired . | . . . . Parts Built . | . . . . Matter . | . . . . Time . | . . . . Total Part Build Rating . | . . . . Parts Repaired . | . . . . Time . | . . . . Parts Recycled . | . . . . Recycled Matter . | . . . . Retrieved Matter . | . . . . Retrieved Components . | . . . . Parts Scanalyzed . | . . . . Part Schematics Acquired . | . . . . Parts Damaged . | . . . . Bothacking | -11 -10 -10 -10 ------------ Run | Scr Mat Min Exi Used RIF Installer . | . . . . Robots Hacked . | . . . . Non-combat . | . . . . Combat . | . . . . Robot Hacks Applied . | . . . . Relay Couplers Released . | . . . . Robots Rewired . | . . . . Allies Hacked . | . . . . Hacks Repelled . | . . . . Allies | -11 -10 -10 -10 -------- Run | Scr Mat Min Exi Total Allies . | . . . . Largest Group . | . . . . Highest-Rated Group . | . . . . Highest-Rated Ally . | . . . . Total Orders . | . . . . Ally Attacks . | . . . . Total Damage . | . . . . Kills . | . . . . Allies Corrupted . | . . . . Allies Melted . | . . . . Intel | -11 -10 -10 -10 ------- Run | Scr Mat Min Exi Robot Analysis Total . | . . . . Derelict Logs Recovered . | . . . . Drone Launches . | . . . . Drone Recoveries . | . . . . Exploration | -11 -10 -10 -10 ------------- Run | Scr Mat Min Exi Turns Passed 682 | 52 195 74 361 Spaces Moved 519 | 36 132 62 289 Core 26 | 4 . . 22 Treads . | . . . . Legs 493 | 32 132 62 267 Wheels . | . . . . Hover . | . . . . Flight . | . . . . Fastest Speed 50 | 50 120 120 120 Average Speed 120 | 112 120 120 122 Slowest Speed 150 | 120 120 120 150 Overloaded Moves . | . . . . Propulsion Burnouts . | . . . . Robots Hopped . | . . . . Cave-ins Triggered . | . . . . Exploration Rate (%) 29 | 3 26 32 57 Regions Visited 3 Branch Regions 2 Pre-discovered Areas . | . . . . Known Exits Taken . | . . . . Unknown Exits Taken 3 | 1 1 1 . Scrap Searched . | . . . . Spaces Dug . | . . . . Terrain Destroyed . | . . . . Melee . | . . . . Projectile . | . . . . AOE . | . . . . Terrain Rammed . | . . . . Walls Destroyed . | . . . . Machines Disabled . | . . . . Actions | -11 -10 -10 -10 --------- Run | Scr Mat Min Exi Total 553 | 43 151 61 298 Wait . | . . . . Move 516 | 35 131 61 289 Hop . | . . . . Pick Up 8 | 1 5 . 2 Fast Attach 7 | 6 1 . . Attach . | . . . . Detach . | . . . . Swap 4 | . 2 . 2 Drop 7 | . 2 . 5 Fire 11 | 1 10 . . Melee . | . . . . Ram . | . . . . Kick . | . . . . Crush . | . . . . Escape Stasis . | . . . . Rewire . | . . . . Trap . | . . . . Miscellaneous . | . . . . Route ------- -11/Scrapyard -10/Materials -10/Mines -10/Exiles History --------- Turn | Location | Event 2 | -11/Scrapyard | Met Revision 17 15 | -11/Scrapyard | Discovered new exit (range 14) 53 | -11/Scrapyard | Entered Materials 80 | -10/Materials | Discovered new exit (range 9) 248 | -10/Materials | Entered Mines 308 | -10/Mines | Build established: Mutant 317 | -10/Mines | Deemed a non-threat by the Exiles lab entrance 317 | -10/Mines | Discovered new exit (range 5) 322 | -10/Mines | Entered Exiles 351 | -10/Exiles | Met 8R-AWN 373 | -10/Exiles | Met EX-HEX 405 | -10/Exiles | Met EX-BIN 422 | -10/Exiles | Aligned with FarCom system 423 | -10/Exiles | Given EX-Vault access code 458 | -10/Exiles | Opened EX-Vault 470 | -10/Exiles | Found Latent Energy Streamer 505 | -10/Exiles | Warned to stay clear of 0b10 Research branches 512 | -10/Exiles | Exiles lab attacked by MAIN.C 587 | -10/Exiles | Found Army-in-a-Box 642 | -10/Exiles | Core integrity fell below 50% 657 | -10/Exiles | Core integrity fell below 20% 681 | -10/Exiles | Lost 6 parts (1p2n1u2w) 683 | -10/Exiles | Destroyed by H-55 Commando with Gauss Rifle Last Messages --------------- 00631_ Aluminum Leg destroyed. 00632_ Penetrated by Slug. 00635_ 8R-AWN: "We've got company!" 00636_ Penetrated by Slug. 00637_ Targeting Computer destroyed. 00638_ Penetrated by Slug. 00638_ Med. Laser destroyed. 00639_ Slug penetrates Machine. 00639_ Lgt. Assault Rifle destroyed. 00641_ Penetrated by Slug. 00644_ Slug penetrates Machine. 00645_ Machine disabled. 00650_ Slug penetrates Machine. 00650_ Aluminum Leg destroyed. 00653_ Penetrated by Slug. 00658_ Machine disabled. 00663_ DAS Turret system terminally corrupted. 00663_ Penetrated by Slug. 00668_ Machine disabled. 00683_ Penetrated by Slug. Map ----- +----------------------------------------------------+ | ?????????????????????????????????????????????????? | | ?????????????????????????????????????????????????? | | ?????????????????????????????????????????????????? | | ?????????????????????????????????????????????????? | | ?????????????????????????????????????????????????? | | ?????????????????????????????????????????????????? | | ?????????????????????????????????????????????????? | | ?????????????????????????????????????????????????? | | ?????????????????????????????????????????????????? | | ?????????????????????????????????????????????????? | | ?????????????????????????????????????????????????? | | ?????????????????????????????????????????????????? | | ?????????????????????????????????????????????????? | | ?????????????????????????????????????????????????? | | ?????????????????????????????????????????????????? | | ?????????????????????????????????????????????????? | | ????????????? ??????????????#######??????????????? | | ????????????? ##?##????????#!!! "#??????????????? | | ???????????? #""???????# "#??????????????? | | ???????????? ??????# "#??????????????? | | ????????????" #????## ""#????????????### | | ????????????" #####" ""#???????????? " | | ?????????????# ##" ""#???????????"" " | | ??????????????# #"" #????????????#"" | | ?????????????????# #????????????#"" | | ????????????????????# @ ##???????????#"" | | ????????????????????### "#???????????? | | ?????????????????????#" ###???????????" | | ???????????????????"""" ##??????????# | | ????????????????? "###"" ######???### | | ???????????????? "#?##" " "#####X# | | ????????????????? ##??#" | | ????????????????!""""""##????#"# | | ????????????????#######??????#### | | ????????????????????????????????### | | ??????????????????????????????????### | | ????????????????????????????????????## | | ?????????????????????????????????????## | | ??????????????????????????????????????##" | | ???????????????????????????????????????#"" | | ???????????????????????????????????????#" | | ???????????????????????????????????????"" | | ????????????????????????????????????????" | | ????????????????????????????????????????" % | | ????????????????????????????????????????" | | ????????????????????????????????????????? | | ?????????????????????????????????????????? | | ??????????????????????????????????????????????? | | ????????????????????????????????????????????????? | | ?????????????????????????????????????????????????? | +----------------------------------------------------+ Best States ------------- Heat Dissipation 25 Energy Generation 10 Energy Capacity 125 Matter Stores 250 Matter Capacity 300 Sight Range 16 Terrain Scan Density 10 Evasion (%) 40 Targeting Accuracy 5 Item Schematics ----------------- None Robot Schematics ------------------ None Fabricated ------------ Nothing Alien Tech Used ----------------- None Achievements -------------- None Challenges ------------ None Game ------ Seed GrenadeCoordinationCasing Manual? 0 Play Time 00:06:04 Cumulative 201.7 hours Start 2021.05.11 @ 20:15:57 End 2021.05.11 @ 20:26:01 Sessions 1 Manual Loads 0 Difficulty Rogue Special Mode None Game No. 393 Rogue 238 Adventurer 148 Explorer 7 Win Type - Total 5 Types 5/0/0/0/0/0/0/0/0 Lore% 73 Gallery% 84 Achievement% 61 Wizard Run 0 Options --------- ASCII 0 Keyboard 0 Movement Numpad Keybinds 0 Fullscreen 1 Font 14/X11 Map View 84x54 Tactical HUD 1 Map Filters NONE Filters NONE Steam 1 RUN: 05d4e423-f80e-4b80-b594-27363e45f220